fUSD/lending_fUSD_20260521
["ID","MTS","AMOUNT","RATE_DAILY","PERIOD"]
[422770512,1779372669000,-5032.26858369,0.00039821,2]
[422770516,1779372669000,-25878.59067388,0.00039821,2]
[422770514,1779372669000,-996.13326631,0.00039821,2]
[422770517,1779372669000,-94.6986552,0.00026315,2]
[422770513,1779372669000,-643.0,0.00039821,2]
[422770511,1779372669000,-188.9029179,0.00039821,2]
[422770518,1779372669000,-759.3013448,0.00026315,2]
[422770478,1779372669000,-468.36222448,0.00039821,2]
[422770502,1779372669000,-1069.13683208,0.00039821,2]
[422770500,1779372669000,-40787.90642247,0.00039821,2]
[422770510,1779372669000,-13192.62967472,0.00039821,2]
[422770492,1779372669000,-24888.44077698,0.00039821,2]
[422770480,1779372669000,-10000.0,0.00039821,3]
[422770482,1779372669000,-500.0,0.00039821,2]
[422770481,1779372669000,-180.0,0.00039821,2]
[422770486,1779372669000,-201.19108164,0.00039821,7]
[422770488,1779372669000,-47879.64,0.00039821,3]
[422770483,1779372669000,-318.51398801,0.00039821,2]
[422770485,1779372669000,-30391.0,0.00039821,10]
[422770495,1779372669000,-155.25975748,0.00039821,2]
[422770484,1779372669000,-41411.87,0.00039821,12]
[422770490,1779372669000,-1002.41,0.00039821,2]
[422770491,1779372669000,-401.38537214,0.00039821,2]
[422770493,1779372669000,-18000.0,0.00039821,2]
[422770497,1779372669000,-255.64805054,0.00039821,2]
[422770499,1779372669000,-1294.28893012,0.00039821,2]
[422770496,1779372669000,-1721.2335207,0.00039821,2]
[422770498,1779372669000,-500.0,0.00039821,2]
[422770494,1779372669000,-44128.24175589,0.00039821,2]
[422770487,1779372669000,-176.66830958,0.00039821,12]
[422770520,1779372724000,-854.0,0.00026863,3]
[422770521,1779372724000,-46.74469,0.00028767,10]
[422770523,1779372724000,-300.0,0.00035879,2]
[422770524,1779372724000,-8498.59948571,0.00039821,2]
[422770522,1779372724000,-396.25531,0.00028767,10]
[422770539,1779372742000,-300.0,0.00035879,2]
[422770538,1779372742000,-854.0,0.00032889,9]
[422770537,1779372742000,-854.0,0.00032341,9]
[422770535,1779372742000,-854.0,0.00031245,7]
[422770530,1779372742000,-19324.0,0.00029,2]
[422770531,1779372742000,-854.0,0.00029054,5]
[422770541,1779372742000,-513999.55464724,0.00039821,2]
[422770528,1779372742000,-754.0,0.00028767,10]
[422770526,1779372742000,-854.0,0.00027958,4]
[422770534,1779372742000,-854.0,0.00030697,7]
[422770533,1779372742000,-854.0,0.0003015,6]
[422770525,1779372742000,-854.0,0.00027411,3]
[422770532,1779372742000,-854.0,0.00029602,6]
[422770529,1779372742000,-13512.0,0.00029,2]
[422770546,1779372742000,-5000.0,0.00039821,14]
[422770527,1779372742000,-854.0,0.00028506,4]
[422770540,1779372742000,-300.0,0.00035879,2]
[422770543,1779372742000,-156.15618705,0.00039821,2]
[422770555,1779372742000,-888.03,0.00039821,5]
[422770553,1779372742000,-888.03,0.00039821,5]
[422770554,1779372742000,-888.03,0.00039821,5]
[422770550,1779372742000,-888.03,0.00039821,5]
[422770551,1779372742000,-888.03,0.00039821,5]
[422770549,1779372742000,-888.03,0.00039821,5]
[422770552,1779372742000,-888.03,0.00039821,5]
[422770557,1779372742000,-888.03,0.00039821,5]
[422770547,1779372742000,-1969.89267571,0.00039821,5]
[422770548,1779372742000,-620.72166919,0.00039821,7]
[422770545,1779372742000,-12788.16365684,0.00039821,2]
[422770536,1779372742000,-854.0,0.00031793,8]
[422770542,1779372742000,-9470.03263149,0.00039821,2]
[422770556,1779372742000,-888.03,0.00039821,5]
[422770544,1779372742000,-1094.41464173,0.00039821,2]
[422770597,1779372743000,-500.0,0.00039821,10]
[422770607,1779372743000,-7595.56,0.00039821,7]
[422770604,1779372743000,-7595.56,0.00039821,7]
[422770606,1779372743000,-7595.56,0.00039821,7]
[422770596,1779372743000,-500.0,0.00039821,10]
[422770589,1779372743000,-500.0,0.00039821,10]
[422770593,1779372743000,-500.0,0.00039821,10]
[422770588,1779372743000,-500.0,0.00039821,10]
[422770591,1779372743000,-500.0,0.00039821,10]
[422770592,1779372743000,-500.0,0.00039821,10]
[422770595,1779372743000,-500.0,0.00039821,10]
[422770605,1779372743000,-7595.56,0.00039821,7]
[422770600,1779372743000,-500.0,0.00039821,10]
[422770611,1779372743000,-7595.56,0.00039821,7]
[422770599,1779372743000,-500.0,0.00039821,10]
[422770598,1779372743000,-500.0,0.00039821,10]
[422770602,1779372743000,-500.0,0.00039821,10]
[422770608,1779372743000,-7595.56,0.00039821,7]
[422770610,1779372743000,-7595.56,0.00039821,7]
[422770612,1779372743000,-7595.56,0.00039821,7]
[422770594,1779372743000,-500.0,0.00039821,10]
[422770613,1779372743000,-7595.56,0.00039821,7]
[422770617,1779372743000,-7595.56,0.00039821,7]
[422770609,1779372743000,-7595.56,0.00039821,7]
[422770618,1779372743000,-7595.56,0.00039821,7]
[422770619,1779372743000,-7595.56,0.00039821,7]
[422770615,1779372743000,-7595.56,0.00039821,7]
[422770614,1779372743000,-7595.56,0.00039821,7]
[422770601,1779372743000,-500.0,0.00039821,10]
[422770584,1779372743000,-500.0,0.00039821,10]
[422770573,1779372743000,-500.0,0.00039821,3]
[422770586,1779372743000,-500.0,0.00039821,10]
[422770616,1779372743000,-7595.56,0.00039821,7]
[422770561,1779372743000,-888.03,0.00039821,5]
[422770560,1779372743000,-888.03,0.00039821,5]
[422770558,1779372743000,-888.03,0.00039821,5]
[422770559,1779372743000,-888.03,0.00039821,5]
[422770570,1779372743000,-888.03,0.00039821,5]
[422770566,1779372743000,-888.03,0.00039821,5]
[422770564,1779372743000,-888.03,0.00039821,5]
[422770565,1779372743000,-888.03,0.00039821,5]
[422770568,1779372743000,-888.03,0.00039821,5]
[422770569,1779372743000,-888.03,0.00039821,5]
[422770563,1779372743000,-888.03,0.00039821,5]
[422770562,1779372743000,-888.03,0.00039821,5]
[422770590,1779372743000,-500.0,0.00039821,10]
[422770567,1779372743000,-888.03,0.00039821,5]
[422770578,1779372743000,-605.47753369,0.00039821,3]
[422770576,1779372743000,-500.0,0.00039821,3]
[422770580,1779372743000,-500.0,0.00039821,10]
[422770571,1779372743000,-888.03,0.00039821,5]
[422770574,1779372743000,-500.0,0.00039821,3]
[422770581,1779372743000,-500.0,0.00039821,10]
[422770579,1779372743000,-343.72465623,0.00039821,7]
[422770582,1779372743000,-500.0,0.00039821,10]
[422770577,1779372743000,-500.0,0.00039821,3]
[422770575,1779372743000,-500.0,0.00039821,3]
[422770583,1779372743000,-500.0,0.00039821,10]
[422770587,1779372743000,-500.0,0.00039821,10]
[422770585,1779372743000,-500.0,0.00039821,10]
[422770572,1779372743000,-888.17776557,0.00039821,5]
[422770621,1779372743000,-7595.56,0.00039821,7]
[422770603,1779372743000,-297.18726039,0.00039821,10]
[422770623,1779372743000,-7595.56,0.00039821,7]
[422770652,1779372743000,-3495.72748724,0.00039821,11]
[422770651,1779372743000,-3495.56,0.00039821,11]
[422770653,1779372743000,-409.76568634,0.00039821,14]
[422770656,1779372743000,-500.0,0.00039821,2]
[422770659,1779372743000,-500.0,0.00039821,2]
[422770662,1779372743000,-500.0,0.00039821,2]
[422770663,1779372743000,-500.0,0.00039821,2]
[422770664,1779372743000,-500.0,0.00039821,2]
[422770661,1779372743000,-500.0,0.00039821,2]
[422770660,1779372743000,-500.0,0.00039821,2]
[422770666,1779372743000,-410.09914886,0.00039821,2]
[422770670,1779372743000,-60800.0,0.00039821,7]
[422770667,1779372743000,-393.9,0.00039821,15]
[422770649,1779372743000,-3495.56,0.00039821,11]
[422770671,1779372743000,-243.27599211,0.00039821,11]
[422770669,1779372743000,-80788.70267137,0.00039821,14]
[422770665,1779372743000,-251.91908673,0.00039821,2]
[422770683,1779372743000,-8413.44,0.00039821,11]
[422770673,1779372743000,-785.00757306,0.00039821,2]
[422770672,1779372743000,-32211.70913923,0.00039821,20]
[422770674,1779372743000,-2108.7149964,0.00039821,7]
[422770675,1779372743000,-250.0,0.00039821,2]
[422770676,1779372743000,-400.0,0.00039821,7]
[422770679,1779372743000,-8000.0,0.00039821,15]
[422770677,1779372743000,-2627.2870884,0.00039821,2]
[422770681,1779372743000,-8413.44,0.00039821,11]
[422770682,1779372743000,-8413.44,0.00039821,11]
[422770628,1779372743000,-258.84233961,0.00039821,14]
[422770668,1779372743000,-232.33122327,0.00039821,2]
[422770655,1779372743000,-500.0,0.00039821,2]
[422770678,1779372743000,-1077.5842467,0.00039821,10]
[422770650,1779372743000,-3495.56,0.00039821,11]
[422770648,1779372743000,-3495.56,0.00039821,11]
[422770624,1779372743000,-7595.56,0.00039821,7]
[422770622,1779372743000,-7595.56,0.00039821,7]
[422770629,1779372743000,-3495.56,0.00039821,11]
[422770625,1779372743000,-7595.56,0.00039821,7]
[422770627,1779372743000,-7595.66,0.00039821,7]
[422770630,1779372743000,-3495.56,0.00039821,11]
[422770626,1779372743000,-7595.56,0.00039821,7]
[422770632,1779372743000,-3495.56,0.00039821,11]
[422770631,1779372743000,-3495.56,0.00039821,11]
[422770633,1779372743000,-3495.56,0.00039821,11]
[422770680,1779372743000,-8413.44,0.00039821,11]
[422770637,1779372743000,-3495.56,0.00039821,11]
[422770634,1779372743000,-3495.56,0.00039821,11]
[422770620,1779372743000,-7595.56,0.00039821,7]
[422770636,1779372743000,-3495.56,0.00039821,11]
[422770635,1779372743000,-3495.56,0.00039821,11]
[422770646,1779372743000,-3495.56,0.00039821,11]
[422770658,1779372743000,-500.0,0.00039821,2]
[422770647,1779372743000,-3495.56,0.00039821,11]
[422770657,1779372743000,-500.0,0.00039821,2]
[422770642,1779372743000,-3495.56,0.00039821,11]
[422770654,1779372743000,-500.0,0.00039821,2]
[422770643,1779372743000,-3495.56,0.00039821,11]
[422770639,1779372743000,-3495.56,0.00039821,11]
[422770644,1779372743000,-3495.56,0.00039821,11]
[422770641,1779372743000,-3495.56,0.00039821,11]
[422770645,1779372743000,-3495.56,0.00039821,11]
[422770638,1779372743000,-3495.56,0.00039821,11]
[422770640,1779372743000,-3495.56,0.00039821,11]
[422770724,1779372744000,-594.99,0.00039821,2]
[422770723,1779372744000,-594.99,0.00039821,2]
[422770726,1779372744000,-594.99,0.00039821,2]
[422770722,1779372744000,-594.99,0.00039821,2]
[422770718,1779372744000,-594.99,0.00039821,2]
[422770720,1779372744000,-594.99,0.00039821,2]
[422770717,1779372744000,-594.99,0.00039821,2]
[422770710,1779372744000,-500.0,0.00039821,3]
[422770725,1779372744000,-594.99,0.00039821,2]
[422770719,1779372744000,-594.99,0.00039821,2]
[422770715,1779372744000,-164.0,0.00039821,2]
[422770721,1779372744000,-594.99,0.00039821,2]
[422770729,1779372744000,-594.99,0.00039821,2]
[422770728,1779372744000,-594.99,0.00039821,2]
[422770733,1779372744000,-594.99,0.00039821,2]
[422770730,1779372744000,-594.99,0.00039821,2]
[422770732,1779372744000,-594.99,0.00039821,2]
[422770731,1779372744000,-594.99,0.00039821,2]
[422770740,1779372744000,-595.05890432,0.00039821,2]
[422770741,1779372744000,-107012.82,0.00039821,15]
[422770742,1779372744000,-1500.0,0.00039821,10]
[422770743,1779372744000,-1799.77,0.00039821,11]
[422770744,1779372744000,-1799.77,0.00039821,11]
[422770734,1779372744000,-594.99,0.00039821,2]
[422770714,1779372744000,-211.00329936,0.00039821,11]
[422770736,1779372744000,-594.99,0.00039821,2]
[422770727,1779372744000,-594.99,0.00039821,2]
[422770713,1779372744000,-168.5220338,0.00039821,14]
[422770693,1779372744000,-8413.44,0.00039821,11]
[422770711,1779372744000,-500.0,0.00039821,3]
[422770737,1779372744000,-594.99,0.00039821,2]
[422770684,1779372744000,-8413.44,0.00039821,11]
[422770685,1779372744000,-8413.44,0.00039821,11]
[422770687,1779372744000,-8413.44,0.00039821,11]
[422770691,1779372744000,-8413.44,0.00039821,11]
[422770692,1779372744000,-8413.44,0.00039821,11]
[422770697,1779372744000,-8413.44,0.00039821,11]
[422770690,1779372744000,-8413.44,0.00039821,11]
[422770696,1779372744000,-8413.44,0.00039821,11]
[422770688,1779372744000,-8413.44,0.00039821,11]
[422770695,1779372744000,-8413.44,0.00039821,11]
[422770694,1779372744000,-8413.44,0.00039821,11]
[422770689,1779372744000,-8413.44,0.00039821,11]
[422770686,1779372744000,-8413.44,0.00039821,11]
[422770699,1779372744000,-8413.44,0.00039821,11]
[422770698,1779372744000,-8413.44,0.00039821,11]
[422770702,1779372744000,-8413.44,0.00039821,11]
[422770707,1779372744000,-386.59119242,0.00039821,10]
[422770708,1779372744000,-173.90641033,0.00039821,4]
[422770704,1779372744000,-653.63293928,0.00039821,7]
[422770703,1779372744000,-8413.57,0.00039821,11]
[422770700,1779372744000,-8413.44,0.00039821,11]
[422770701,1779372744000,-8413.44,0.00039821,11]
[422770705,1779372744000,-581.27883638,0.00039821,2]
[422770706,1779372744000,-3028.0,0.00039821,15]
[422770709,1779372744000,-630.17880194,0.00039821,2]
[422770712,1779372744000,-629.0,0.00039821,3]
[422770716,1779372744000,-167.85835649,0.00039821,10]
[422770739,1779372744000,-594.99,0.00039821,2]
[422770745,1779372744000,-1799.77,0.00039821,11]
[422770738,1779372744000,-594.99,0.00039821,2]
[422770776,1779372744000,-500.0,0.00039821,2]
[422770780,1779372744000,-346.309565,0.00039821,2]
[422770782,1779372744000,-346.309565,0.00039821,2]
[422770777,1779372744000,-207.74536277,0.00039821,2]
[422770781,1779372744000,-346.309565,0.00039821,2]
[422770779,1779372744000,-346.309565,0.00039821,2]
[422770778,1779372744000,-90097.79996,0.00039821,2]
[422770783,1779372744000,-346.309565,0.00039821,2]
[422770785,1779372744000,-346.309565,0.00039821,2]
[422770791,1779372744000,-600.19,0.00039821,7]
[422770790,1779372744000,-600.18,0.00039821,7]
[422770789,1779372744000,-600.18,0.00039821,7]
[422770792,1779372744000,-3203770.24861967,0.00039821,61]
[422770784,1779372744000,-346.309565,0.00039821,2]
[422770787,1779372744000,-209.211228,0.00039821,2]
[422770786,1779372744000,-972.111452,0.00039821,2]
[422770788,1779372744000,-459.452307,0.00039821,2]
[422770793,1779372744000,-5309.42556719,0.00039821,120]
[422770795,1779372744000,-7572.40718134,0.00039821,120]
[422770801,1779372744000,-500.0,0.00039821,120]
[422770797,1779372744000,-500.0,0.00039821,120]
[422770802,1779372744000,-500.0,0.00039821,120]
[422770796,1779372744000,-6061.39656511,0.00039821,120]
[422770800,1779372744000,-500.0,0.00039821,120]
[422770794,1779372744000,-4891.94588036,0.00039821,30]
[422770798,1779372744000,-500.0,0.00039821,120]
[422770735,1779372744000,-594.99,0.00039821,2]
[422770775,1779372744000,-500.0,0.00039821,2]
[422770771,1779372744000,-649.74850791,0.00039821,6]
[422770799,1779372744000,-500.0,0.00039821,120]
[422770773,1779372744000,-19904.18015379,0.00039821,5]
[422770747,1779372744000,-1799.77,0.00039821,11]
[422770749,1779372744000,-1799.77,0.00039821,11]
[422770748,1779372744000,-1799.77,0.00039821,11]
[422770755,1779372744000,-1799.77,0.00039821,11]
[422770751,1779372744000,-1799.77,0.00039821,11]
[422770750,1779372744000,-1799.77,0.00039821,11]
[422770753,1779372744000,-1799.77,0.00039821,11]
[422770774,1779372744000,-88166.37820486,0.00039821,5]
[422770752,1779372744000,-1799.77,0.00039821,11]
[422770757,1779372744000,-1799.77,0.00039821,11]
[422770756,1779372744000,-1799.77,0.00039821,11]
[422770754,1779372744000,-1799.77,0.00039821,11]
[422770759,1779372744000,-1799.77,0.00039821,11]
[422770746,1779372744000,-1799.77,0.00039821,11]
[422770761,1779372744000,-1799.77,0.00039821,11]
[422770762,1779372744000,-1799.77,0.00039821,11]
[422770772,1779372744000,-10164.83386079,0.00039821,5]
[422770770,1779372744000,-3004.06024108,0.00039821,7]
[422770768,1779372744000,-10122.72584569,0.00039821,14]
[422770760,1779372744000,-1799.77,0.00039821,11]
[422770758,1779372744000,-1799.77,0.00039821,11]
[422770764,1779372744000,-1799.77,0.00039821,11]
[422770767,1779372744000,-1057.23005082,0.00039821,2]
[422770766,1779372744000,-1799.82163547,0.00039821,11]
[422770765,1779372744000,-1799.77,0.00039821,11]
[422770769,1779372744000,-771.4861144,0.00039821,2]
[422770763,1779372744000,-1799.77,0.00039821,11]
[422770848,1779372745000,-10000.0,0.00039821,120]
[422770843,1779372745000,-21622.66746889,0.00039821,120]
[422770842,1779372745000,-5911.11274347,0.00039821,120]
[422770844,1779372745000,-500.0,0.00039821,60]
[422770839,1779372745000,-9777.72712925,0.00039821,120]
[422770836,1779372745000,-1961.52,0.00039821,120]
[422770838,1779372745000,-1961.52,0.00039821,120]
[422770833,1779372745000,-1961.52,0.00039821,120]
[422770834,1779372745000,-1961.52,0.00039821,120]
[422770830,1779372745000,-1961.52,0.00039821,120]
[422770837,1779372745000,-1961.52,0.00039821,120]
[422770841,1779372745000,-500.0,0.00039821,60]
[422770859,1779372745000,-500.32245383,0.00039821,30]
[422770845,1779372745000,-500.0,0.00039821,120]
[422770847,1779372745000,-10000.0,0.00039821,120]
[422770846,1779372745000,-500.30788037,0.00039821,120]
[422770850,1779372745000,-10000.0,0.00039821,120]
[422770860,1779372745000,-448.08,0.00039821,120]
[422770853,1779372745000,-10000.0,0.00039821,120]
[422770849,1779372745000,-10000.0,0.00039821,120]
[422770852,1779372745000,-10000.0,0.00039821,120]
[422770851,1779372745000,-10000.0,0.00039821,120]
[422770854,1779372745000,-10000.0,0.00039821,120]
[422770858,1779372745000,-355.10840897,0.00039821,120]
[422770855,1779372745000,-10000.0,0.00039821,120]
[422770831,1779372745000,-1961.52,0.00039821,120]
[422770840,1779372745000,-1961.60504979,0.00039821,120]
[422770835,1779372745000,-1961.52,0.00039821,120]
[422770818,1779372745000,-166282.33136898,0.00039821,120]
[422770829,1779372745000,-1961.52,0.00039821,120]
[422770857,1779372745000,-537.93489283,0.00039821,60]
[422770804,1779372745000,-519.06264575,0.00039821,120]
[422770803,1779372745000,-500.0,0.00039821,120]
[422770805,1779372745000,-6260.4185452,0.00039821,120]
[422770806,1779372745000,-50000.0,0.00039821,31]
[422770808,1779372745000,-50000.0,0.00039821,34]
[422770809,1779372745000,-50000.0,0.00039821,37]
[422770807,1779372745000,-50000.0,0.00039821,33]
[422770810,1779372745000,-50000.0,0.00039821,39]
[422770816,1779372745000,-1961.52,0.00039821,120]
[422770815,1779372745000,-1961.52,0.00039821,120]
[422770813,1779372745000,-112746.73979321,0.00039821,120]
[422770832,1779372745000,-1961.52,0.00039821,120]
[422770812,1779372745000,-4222.44106053,0.00039821,120]
[422770814,1779372745000,-6241.45026934,0.00039821,120]
[422770821,1779372745000,-1961.52,0.00039821,120]
[422770828,1779372745000,-1961.52,0.00039821,120]
[422770817,1779372745000,-1961.52,0.00039821,120]
[422770822,1779372745000,-1961.52,0.00039821,120]
[422770820,1779372745000,-1961.52,0.00039821,120]
[422770823,1779372745000,-1961.52,0.00039821,120]
[422770819,1779372745000,-1961.52,0.00039821,120]
[422770824,1779372745000,-1961.52,0.00039821,120]
[422770825,1779372745000,-1961.52,0.00039821,120]
[422770827,1779372745000,-1961.52,0.00039821,120]
[422770826,1779372745000,-1961.52,0.00039821,120]
[422770811,1779372745000,-11632.45478376,0.00039821,60]
[422770856,1779372745000,-19073.54249,0.00039821,120]
[422770918,1779372745000,-799.62,0.00039821,120]
[422770863,1779372745000,-650.04,0.00039821,120]
[422770897,1779372745000,-9000.0,0.00039821,120]
[422770889,1779372745000,-500.0,0.00039821,120]
[422770898,1779372745000,-401.99963586,0.00039821,120]
[422770896,1779372745000,-20629.7563355,0.00039821,120]
[422770891,1779372745000,-580.07815055,0.00039821,120]
[422770894,1779372745000,-540.10053008,0.00039821,120]
[422770900,1779372745000,-377662.66072192,0.00039821,120]
[422770911,1779372745000,-799.62,0.00039821,120]
[422770910,1779372745000,-799.62,0.00039821,120]
[422770906,1779372745000,-799.62,0.00039821,120]
[422770907,1779372745000,-799.62,0.00039821,120]
[422770902,1779372745000,-799.62,0.00039821,120]
[422770895,1779372745000,-5264.76844006,0.00039821,2]
[422770901,1779372745000,-799.62,0.00039821,120]
[422770905,1779372745000,-799.62,0.00039821,120]
[422770904,1779372745000,-799.62,0.00039821,120]
[422770909,1779372745000,-799.62,0.00039821,120]
[422770908,1779372745000,-799.62,0.00039821,120]
[422770914,1779372745000,-799.62,0.00039821,120]
[422770912,1779372745000,-799.62,0.00039821,120]
[422770915,1779372745000,-799.62,0.00039821,120]
[422770916,1779372745000,-799.62,0.00039821,120]
[422770913,1779372745000,-799.62,0.00039821,120]
[422770919,1779372745000,-799.62,0.00039821,120]
[422770917,1779372745000,-799.62,0.00039821,120]
[422770861,1779372745000,-650.04,0.00039821,120]
[422770903,1779372745000,-799.62,0.00039821,120]
[422770892,1779372745000,-474.6878779,0.00039821,120]
[422770899,1779372745000,-7318.91595576,0.00039821,10]
[422770890,1779372745000,-500.0,0.00039821,120]
[422770862,1779372745000,-650.04,0.00039821,120]
[422770893,1779372745000,-500.0,0.00039821,120]
[422770872,1779372745000,-650.04,0.00039821,120]
[422770873,1779372745000,-650.04,0.00039821,120]
[422770866,1779372745000,-650.04,0.00039821,120]
[422770864,1779372745000,-650.04,0.00039821,120]
[422770870,1779372745000,-650.04,0.00039821,120]
[422770867,1779372745000,-650.04,0.00039821,120]
[422770868,1779372745000,-650.04,0.00039821,120]
[422770869,1779372745000,-650.04,0.00039821,120]
[422770871,1779372745000,-650.04,0.00039821,120]
[422770875,1779372745000,-650.04,0.00039821,120]
[422770885,1779372745000,-181.97280598,0.00039821,120]
[422770865,1779372745000,-650.04,0.00039821,120]
[422770880,1779372745000,-650.04,0.00039821,120]
[422770887,1779372745000,-299.8843248,0.00039821,120]
[422770888,1779372745000,-203.39,0.00039821,120]
[422770879,1779372745000,-650.04,0.00039821,120]
[422770881,1779372745000,-650.04,0.00039821,120]
[422770878,1779372745000,-650.04,0.00039821,120]
[422770886,1779372745000,-500.0,0.00039821,120]
[422770883,1779372745000,-650.04,0.00039821,120]
[422770884,1779372745000,-650.05708448,0.00039821,120]
[422770876,1779372745000,-650.04,0.00039821,120]
[422770882,1779372745000,-650.04,0.00039821,120]
[422770874,1779372745000,-650.04,0.00039821,120]
[422770877,1779372745000,-650.04,0.00039821,120]
[422770970,1779372746000,-512.33,0.00039821,120]
[422770953,1779372746000,-10000.0,0.00039821,120]
[422770963,1779372746000,-512.33,0.00039821,120]
[422770969,1779372746000,-512.33,0.00039821,120]
[422770959,1779372746000,-512.33,0.00039821,120]
[422770952,1779372746000,-10000.0,0.00039821,120]
[422770958,1779372746000,-512.33,0.00039821,120]
[422770957,1779372746000,-512.33,0.00039821,120]
[422770960,1779372746000,-512.33,0.00039821,120]
[422770961,1779372746000,-512.33,0.00039821,120]
[422770956,1779372746000,-256306.60956128,0.00039821,120]
[422770967,1779372746000,-512.33,0.00039821,120]
[422770955,1779372746000,-70575.0,0.00039821,71]
[422770968,1779372746000,-512.33,0.00039821,120]
[422770980,1779372746000,-512.56641409,0.00039821,120]
[422770973,1779372746000,-512.33,0.00039821,120]
[422770965,1779372746000,-512.33,0.00039821,120]
[422770972,1779372746000,-512.33,0.00039821,120]
[422770971,1779372746000,-512.33,0.00039821,120]
[422770974,1779372746000,-512.33,0.00039821,120]
[422770964,1779372746000,-512.33,0.00039821,120]
[422770975,1779372746000,-512.33,0.00039821,120]
[422770977,1779372746000,-512.33,0.00039821,120]
[422770988,1779372746000,-274.88,0.00039821,90]
[422770976,1779372746000,-512.33,0.00039821,120]
[422770981,1779372746000,-50000.0,0.00039821,120]
[422770987,1779372746000,-5910.60832698,0.00039821,120]
[422770989,1779372746000,-606.40317017,0.00039821,120]
[422770954,1779372746000,-923.35472889,0.00039821,120]
[422770966,1779372746000,-512.33,0.00039821,120]
[422770962,1779372746000,-512.33,0.00039821,120]
[422770922,1779372746000,-799.62,0.00039821,120]
[422770948,1779372746000,-10000.0,0.00039821,120]
[422770921,1779372746000,-799.62,0.00039821,120]
[422770924,1779372746000,-799.63893955,0.00039821,120]
[422770920,1779372746000,-799.62,0.00039821,120]
[422770923,1779372746000,-799.62,0.00039821,120]
[422770926,1779372746000,-500.0,0.00039821,120]
[422770936,1779372746000,-10000.0,0.00039821,120]
[422770937,1779372746000,-10000.0,0.00039821,120]
[422770938,1779372746000,-10000.0,0.00039821,120]
[422770934,1779372746000,-500.0,0.00039821,120]
[422770933,1779372746000,-10000.0,0.00039821,120]
[422770935,1779372746000,-500.0,0.00039821,120]
[422770925,1779372746000,-500.0,0.00039821,120]
[422770930,1779372746000,-10000.0,0.00039821,120]
[422770928,1779372746000,-500.0,0.00039821,120]
[422770951,1779372746000,-10000.0,0.00039821,120]
[422770927,1779372746000,-500.75781891,0.00039821,120]
[422770931,1779372746000,-10000.0,0.00039821,120]
[422770929,1779372746000,-527.74,0.00039821,120]
[422770944,1779372746000,-10000.0,0.00039821,120]
[422770939,1779372746000,-10000.0,0.00039821,120]
[422770947,1779372746000,-10000.0,0.00039821,120]
[422770945,1779372746000,-10000.0,0.00039821,120]
[422770949,1779372746000,-10000.0,0.00039821,120]
[422770978,1779372746000,-512.33,0.00039821,120]
[422770940,1779372746000,-10000.0,0.00039821,120]
[422770941,1779372746000,-10000.0,0.00039821,120]
[422770942,1779372746000,-10000.0,0.00039821,120]
[422770950,1779372746000,-10000.0,0.00039821,120]
[422770943,1779372746000,-10000.0,0.00039821,120]
[422770946,1779372746000,-10000.0,0.00039821,120]
[422770932,1779372746000,-10000.0,0.00039821,120]
[422770979,1779372746000,-512.33,0.00039821,120]
[422771027,1779372746000,-1724.24,0.00039821,10]
[422770986,1779372746000,-2678.1584046,0.00039821,120]
[422771021,1779372746000,-1724.24,0.00039821,10]
[422771022,1779372746000,-1724.24,0.00039821,10]
[422771020,1779372746000,-1724.24,0.00039821,10]